[Event "Early-Titled-Tuesday-Blitz-October-03-2023"]
[Site "Chess.com"]
[Date "2023.10.03"]
[Round "3"]
[White "JACK_BAU3R"]
[Black "mmDarko"]
[Result "1/2-1/2"]
[WhiteElo "2003"]
[BlackElo "2294"]
[TimeControl "180+1"]
[EndTime "8:29:43 PDT"]
[Termination "Game drawn by repetition"]

1. d4 {[%clk 0:03:00.9]} 1... Nf6 {[%clk 0:02:59.6]} 2. c3 {[%clk 0:03:01.8]}
2... d5 {[%clk 0:02:59.3]} 3. Bf4 {[%clk 0:03:02.4]} 3... Bf5 {[%clk 0:02:59.6]}
4. Qb3 {[%clk 0:03:00.3]} 4... Qc8 {[%clk 0:02:58.7]} 5. Nd2 {[%clk 0:02:58.5]}
5... e6 {[%clk 0:02:58.5]} 6. c4 {[%clk 0:02:55]} 6... Nbd7 {[%clk 0:02:49.9]}
7. cxd5 {[%clk 0:02:38.8]} 7... exd5 {[%clk 0:02:49.7]} 8. Rc1 {[%clk 0:02:39]}
8... c6 {[%clk 0:02:48.7]} 9. Ngf3 {[%clk 0:02:39.5]} 9... Be7 {[%clk
0:02:46.4]} 10. Nh4 {[%clk 0:02:28.5]} 10... Be6 {[%clk 0:02:44.1]} 11. e3
{[%clk 0:02:25]} 11... O-O {[%clk 0:02:40.9]} 12. Bd3 {[%clk 0:02:22.3]} 12...
Ne4 {[%clk 0:02:31.7]} 13. Nhf3 {[%clk 0:02:14.4]} 13... Ndf6 {[%clk 0:02:15.7]}
14. h3 {[%clk 0:01:52.9]} 14... a5 {[%clk 0:02:14.4]} 15. O-O {[%clk 0:01:50.4]}
15... Nxd2 {[%clk 0:02:09.1]} 16. Nxd2 {[%clk 0:01:51.3]} 16... Ne4 {[%clk
0:01:48.2]} 17. Nxe4 {[%clk 0:01:01.8]} 17... dxe4 {[%clk 0:01:47.8]} 18. Bc4
{[%clk 0:01:02.7]} 18... a4 {[%clk 0:01:02.6]} 19. Bxe6 {[%clk 0:00:53.2]} 19...
axb3 {[%clk 0:00:33.1]} 20. Bxc8 {[%clk 0:00:52.9]} 20... Rfxc8 {[%clk
0:00:33.4]} 21. a3 {[%clk 0:00:53.1]} 21... Ra5 {[%clk 0:00:20.4]} 22. Rc3
{[%clk 0:00:45]} 22... Rb5 {[%clk 0:00:18.1]} 23. Rd1 {[%clk 0:00:44.7]} 23...
Rd8 {[%clk 0:00:14.5]} 24. Rdc1 {[%clk 0:00:37.6]} 24... f5 {[%clk 0:00:13.2]}
25. Kf1 {[%clk 0:00:37]} 25... Kf7 {[%clk 0:00:13]} 26. Ke2 {[%clk 0:00:35.5]}
26... Ke6 {[%clk 0:00:13.2]} 27. f3 {[%clk 0:00:23.1]} 27... Kd5 {[%clk
0:00:12.2]} 28. Bg3 {[%clk 0:00:14.4]} 28... g6 {[%clk 0:00:11.6]} 29. Be1
{[%clk 0:00:14.4]} 29... Bd6 {[%clk 0:00:10.5]} 30. Rc4 {[%clk 0:00:12.8]} 30...
Re8 {[%clk 0:00:10]} 31. f4 {[%clk 0:00:12.3]} 31... Ra8 {[%clk 0:00:09.1]} 32.
g4 {[%clk 0:00:10.7]} 32... h6 {[%clk 0:00:07.6]} 33. Bd2 {[%clk 0:00:08.4]}
33... fxg4 {[%clk 0:00:06.6]} 34. hxg4 {[%clk 0:00:09.3]} 34... h5 {[%clk
0:00:06.5]} 35. gxh5 {[%clk 0:00:09.2]} 35... gxh5 {[%clk 0:00:07.1]} 36. R4c3
{[%clk 0:00:07.8]} 36... Rh8 {[%clk 0:00:06.4]} 37. Rh1 {[%clk 0:00:07.1]} 37...
h4 {[%clk 0:00:06.5]} 38. Rh3 {[%clk 0:00:06.9]} 38... Be7 {[%clk 0:00:06.5]}
39. Rc1 {[%clk 0:00:07.2]} 39... Ke6 {[%clk 0:00:05.7]} 40. Rch1 {[%clk
0:00:07.5]} 40... Kf5 {[%clk 0:00:05.3]} 41. Be1 {[%clk 0:00:08]} 41... Rb6
{[%clk 0:00:05]} 42. Kf1 {[%clk 0:00:04.2]} 42... Ra6 {[%clk 0:00:04.8]} 43.
Bxh4 {[%clk 0:00:02.2]} 43... Bxh4 {[%clk 0:00:04.1]} 44. Rxh4 {[%clk
0:00:02.4]} 44... Rxh4 {[%clk 0:00:04]} 45. Rxh4 {[%clk 0:00:03.3]} 45... c5
{[%clk 0:00:03]} 46. Rh5+ {[%clk 0:00:03.1]} 46... Kg4 {[%clk 0:00:03.3]} 47.
Rxc5 {[%clk 0:00:04]} 47... Kf3 {[%clk 0:00:03.7]} 48. Rc3 {[%clk 0:00:02.3]}
48... Rh6 {[%clk 0:00:03.4]} 49. Kg1 {[%clk 0:00:01.6]} 49... Rg6+ {[%clk
0:00:03.1]} 50. Kf1 {[%clk 0:00:01.6]} 50... Rh6 {[%clk 0:00:03.3]} 51. Kg1
{[%clk 0:00:01.7]} 51... Rg6+ {[%clk 0:00:03.7]} 52. Kf1 {[%clk 0:00:02.1]}
52... Rh6 {[%clk 0:00:04.1]} 1/2-1/2

[Event "Early-Titled-Tuesday-Blitz-October-03-2023"]
[Site "Chess.com"]
[Date "2023.10.03"]
[Round "3"]
[White "wild3000"]
[Black "FERNANDEZL1983"]
[Result "1-0"]
[WhiteElo "2414"]
[BlackElo "2585"]
[TimeControl "180+1"]
[EndTime "8:29:44 PDT"]
[Termination "wild3000 won by checkmate"]

1. d4 {[%clk 0:02:52.2]} 1... Nf6 {[%clk 0:03:00]} 2. Nf3 {[%clk 0:02:52]} 2...
g6 {[%clk 0:02:59.5]} 3. g3 {[%clk 0:02:48.2]} 3... Bg7 {[%clk 0:03:00]} 4. Bg2
{[%clk 0:02:49.1]} 4... O-O {[%clk 0:02:59.2]} 5. O-O {[%clk 0:02:50]} 5... d6
{[%clk 0:02:56.4]} 6. c4 {[%clk 0:02:46.1]} 6... c6 {[%clk 0:02:57.3]} 7. Nc3
{[%clk 0:02:45.1]} 7... Bf5 {[%clk 0:02:56.6]} 8. Bf4 {[%clk 0:02:43.2]} 8...
Ne4 {[%clk 0:02:55]} 9. Be3 {[%clk 0:02:32.8]} 9... Nxc3 {[%clk 0:02:51.1]} 10.
bxc3 {[%clk 0:02:32.7]} 10... Be4 {[%clk 0:02:48.1]} 11. a4 {[%clk 0:02:28]}
11... Na6 {[%clk 0:02:43.2]} 12. a5 {[%clk 0:02:27.7]} 12... c5 {[%clk
0:02:43.3]} 13. Qb3 {[%clk 0:02:21.8]} 13... Qc7 {[%clk 0:02:41.4]} 14. Nd2
{[%clk 0:02:11.8]} 14... Bxg2 {[%clk 0:02:40.3]} 15. Kxg2 {[%clk 0:02:12.7]}
15... Rab8 {[%clk 0:02:39.5]} 16. Rfb1 {[%clk 0:02:06.4]} 16... e6 {[%clk
0:02:36.3]} 17. f3 {[%clk 0:01:55.3]} 17... Rfd8 {[%clk 0:02:31]} 18. Bf2 {[%clk
0:01:55.2]} 18... d5 {[%clk 0:02:29.7]} 19. Rd1 {[%clk 0:01:30.6]} 19... cxd4
{[%clk 0:02:27.8]} 20. cxd4 {[%clk 0:01:30.3]} 20... dxc4 {[%clk 0:02:12.9]} 21.
Nxc4 {[%clk 0:01:23.5]} 21... Rbc8 {[%clk 0:02:11]} 22. Rac1 {[%clk 0:01:19.1]}
22... Qd7 {[%clk 0:02:11.1]} 23. Ne5 {[%clk 0:01:09.1]} 23... Qd5 {[%clk
0:02:09.3]} 24. Qxd5 {[%clk 0:00:47.7]} 24... exd5 {[%clk 0:02:08.8]} 25. Nd3
{[%clk 0:00:41.8]} 25... Rc4 {[%clk 0:02:06.2]} 26. Nc5 {[%clk 0:00:35.7]} 26...
Nxc5 {[%clk 0:01:59.7]} 27. dxc5 {[%clk 0:00:36.6]} 27... Rxc1 {[%clk
0:01:55.8]} 28. Rxc1 {[%clk 0:00:37.5]} 28... h5 {[%clk 0:01:47.9]} 29. c6
{[%clk 0:00:34.7]} 29... bxc6 {[%clk 0:01:47.7]} 30. Rxc6 {[%clk 0:00:35.6]}
30... d4 {[%clk 0:01:47.3]} 31. Rc7 {[%clk 0:00:31.3]} 31... a6 {[%clk 0:01:45]}
32. Rc6 {[%clk 0:00:31.1]} 32... d3 {[%clk 0:01:41]} 33. exd3 {[%clk 0:00:30.8]}
33... Rxd3 {[%clk 0:01:41.7]} 34. Rxa6 {[%clk 0:00:30.7]} 34... Rd2 {[%clk
0:01:42.2]} 35. Kf1 {[%clk 0:00:30.9]} 35... Ra2 {[%clk 0:01:38.2]} 36. Ra8+
{[%clk 0:00:30.6]} 36... Kh7 {[%clk 0:01:37.5]} 37. a6 {[%clk 0:00:30.7]} 37...
Ra1+ {[%clk 0:01:37.1]} 38. Kg2 {[%clk 0:00:28.8]} 38... Ra2 {[%clk 0:01:37.1]}
39. Kf1 {[%clk 0:00:27.4]} 39... Ra1+ {[%clk 0:01:37.4]} 40. Ke2 {[%clk
0:00:24.1]} 40... Ra2+ {[%clk 0:01:37.5]} 41. Ke3 {[%clk 0:00:24]} 41... Bh6+
{[%clk 0:01:20.9]} 42. f4 {[%clk 0:00:24]} 42... g5 {[%clk 0:01:21.2]} 43. Kf3
{[%clk 0:00:22.8]} 43... g4+ {[%clk 0:01:21.3]} 44. Kg2 {[%clk 0:00:22.9]} 44...
Bg7 {[%clk 0:01:20.7]} 45. Kf1 {[%clk 0:00:22.9]} 45... Ra1+ {[%clk 0:01:20.1]}
46. Ke2 {[%clk 0:00:23.2]} 46... Ra2+ {[%clk 0:01:20.5]} 47. Ke3 {[%clk
0:00:23.6]} 47... Bc3 {[%clk 0:01:13.7]} 48. a7 {[%clk 0:00:21.9]} 48... Bf6
{[%clk 0:01:07.1]} 49. Ke4 {[%clk 0:00:20.7]} 49... Ra4+ {[%clk 0:01:03.8]} 50.
Kf5 {[%clk 0:00:20.2]} 50... Kg7 {[%clk 0:01:01]} 51. Rb8 {[%clk 0:00:16.8]}
51... Ra5+ {[%clk 0:01:00.4]} 52. Ke4 {[%clk 0:00:17.1]} 52... Ra4+ {[%clk
0:01:00.4]} 53. Kd3 {[%clk 0:00:17]} 53... Ra3+ {[%clk 0:01:00.6]} 54. Kc4
{[%clk 0:00:17]} 54... Ra4+ {[%clk 0:00:56.9]} 55. Kb5 {[%clk 0:00:16]} 55...
Ra2 {[%clk 0:00:52.8]} 56. a8=Q {[%clk 0:00:16]} 56... Rxf2 {[%clk 0:00:53.4]}
57. Rg8+ {[%clk 0:00:14.4]} 57... Kh7 {[%clk 0:00:53.7]} 58. Rf8 {[%clk
0:00:14.2]} 58... Rb2+ {[%clk 0:00:51.9]} 59. Kc4 {[%clk 0:00:14.2]} 59... Rc2+
{[%clk 0:00:51.2]} 60. Kd3 {[%clk 0:00:14.4]} 60... Rc3+ {[%clk 0:00:51]} 61.
Kd2 {[%clk 0:00:14.7]} 61... Rc7 {[%clk 0:00:51.3]} 62. Rc8 {[%clk 0:00:10.5]}
62... Rd7+ {[%clk 0:00:50.8]} 63. Ke2 {[%clk 0:00:10.1]} 63... Bc3 {[%clk
0:00:49.2]} 64. Qe4+ {[%clk 0:00:09.1]} 64... Kg7 {[%clk 0:00:49.6]} 65. Rxc3
{[%clk 0:00:08.8]} 65... Ra7 {[%clk 0:00:48]} 66. Qe5+ {[%clk 0:00:08.6]} 66...
Kh7 {[%clk 0:00:47.9]} 67. Qe4+ {[%clk 0:00:08.9]} 67... Kg7 {[%clk 0:00:48]}
68. Qd4+ {[%clk 0:00:09.2]} 68... Kg6 {[%clk 0:00:48.2]} 69. Qxa7 {[%clk
0:00:09.9]} 69... h4 {[%clk 0:00:48.4]} 70. Qc5 {[%clk 0:00:10.2]} 70... hxg3
{[%clk 0:00:48.3]} 71. Qg5+ {[%clk 0:00:10.3]} 71... Kh7 {[%clk 0:00:48.2]} 72.
hxg3 {[%clk 0:00:10.9]} 72... Kh8 {[%clk 0:00:46.9]} 73. Rc8+ {[%clk 0:00:10.7]}
73... Kh7 {[%clk 0:00:47.2]} 74. Qf5+ {[%clk 0:00:11.1]} 74... Kg7 {[%clk
0:00:47.4]} 75. Rc7 {[%clk 0:00:09.6]} 75... Kh6 {[%clk 0:00:46.9]} 76. Qf6+
{[%clk 0:00:09.7]} 76... Kh5 {[%clk 0:00:46.7]} 77. Rc5# {[%clk 0:00:09.8]} 1-0

[Event "Early-Titled-Tuesday-Blitz-October-03-2023"]
[Site "Chess.com"]
[Date "2023.10.03"]
[Round "3"]
[White "Russian_berezka"]
[Black "AvitalBor"]
[Result "1-0"]
[WhiteElo "2619"]
[BlackElo "2851"]
[TimeControl "180+1"]
[EndTime "8:29:45 PDT"]
[Termination "Russian_berezka won on time"]

1. d4 {[%clk 0:03:00.9]} 1... e6 {[%clk 0:03:00.9]} 2. c4 {[%clk 0:03:01.1]}
2... d5 {[%clk 0:03:01.8]} 3. Nc3 {[%clk 0:03:01.2]} 3... Bb4 {[%clk 0:03:02]}
4. Qa4+ {[%clk 0:02:58.5]} 4... Nc6 {[%clk 0:03:00.7]} 5. e3 {[%clk 0:02:55.9]}
5... Nf6 {[%clk 0:02:57.1]} 6. Nf3 {[%clk 0:02:56.5]} 6... O-O {[%clk
0:02:56.9]} 7. Bd2 {[%clk 0:02:54.3]} 7... a6 {[%clk 0:02:56.6]} 8. Qc2 {[%clk
0:02:51]} 8... Re8 {[%clk 0:02:52]} 9. a3 {[%clk 0:02:45]} 9... Bf8 {[%clk
0:02:51.8]} 10. Rd1 {[%clk 0:02:34.5]} 10... b6 {[%clk 0:02:47.6]} 11. cxd5
{[%clk 0:02:32]} 11... exd5 {[%clk 0:02:48.5]} 12. Bd3 {[%clk 0:02:21.7]} 12...
Bb7 {[%clk 0:02:47.7]} 13. O-O {[%clk 0:02:20.8]} 13... Bd6 {[%clk 0:02:46.9]}
14. Rfe1 {[%clk 0:02:03.7]} 14... h6 {[%clk 0:02:42.7]} 15. e4 {[%clk
0:02:01.1]} 15... dxe4 {[%clk 0:02:42]} 16. Nxe4 {[%clk 0:02:02]} 16... Nxe4
{[%clk 0:02:41.2]} 17. Bxe4 {[%clk 0:02:02.9]} 17... Nxd4 {[%clk 0:02:16.4]} 18.
Nxd4 {[%clk 0:01:53.8]} 18... Bxh2+ {[%clk 0:01:46.1]} 19. Kxh2 {[%clk
0:01:54.7]} 19... Qh4+ {[%clk 0:01:45.9]} 20. Kg1 {[%clk 0:01:54.4]} 20... Bxe4
{[%clk 0:01:46.5]} 21. Qc3 {[%clk 0:01:48.2]} 21... c5 {[%clk 0:01:39.8]} 22.
Ne2 {[%clk 0:01:36.9]} 22... Rad8 {[%clk 0:00:57.8]} 23. Ng3 {[%clk 0:01:35.4]}
23... Bg6 {[%clk 0:00:49.3]} 24. Rxe8+ {[%clk 0:01:31.8]} 24... Rxe8 {[%clk
0:00:50.2]} 25. Re1 {[%clk 0:01:32.5]} 25... Rd8 {[%clk 0:00:44]} 26. Be3 {[%clk
0:01:11.1]} 26... h5 {[%clk 0:00:39.6]} 27. Qe5 {[%clk 0:01:09.8]} 27... Qg4
{[%clk 0:00:36.8]} 28. f3 {[%clk 0:00:56.8]} 28... Qd7 {[%clk 0:00:19.4]} 29.
Nxh5 {[%clk 0:00:45.7]} 29... f6 {[%clk 0:00:19]} 30. Qh2 {[%clk 0:00:31.5]}
30... Qf5 {[%clk 0:00:14]} 31. Nf4 {[%clk 0:00:26]} 31... Bf7 {[%clk 0:00:13.7]}
32. Qg3 {[%clk 0:00:24.7]} 32... Qc2 {[%clk 0:00:13.1]} 33. Qf2 {[%clk
0:00:24.3]} 33... Qb3 {[%clk 0:00:11.9]} 34. Bc1 {[%clk 0:00:20.4]} 34... c4
{[%clk 0:00:10.6]} 35. Qe3 {[%clk 0:00:19.6]} 35... Qb5 {[%clk 0:00:07.5]} 36.
Qf2 {[%clk 0:00:10.6]} 36... Qb3 {[%clk 0:00:07]} 37. Be3 {[%clk 0:00:10.2]}
37... b5 {[%clk 0:00:06.9]} 38. Bd4 {[%clk 0:00:09.7]} 38... a5 {[%clk 0:00:06]}
39. Bb6 {[%clk 0:00:08.8]} 39... b4 {[%clk 0:00:05.7]} 40. Bxd8 {[%clk
0:00:08.5]} 40... bxa3 {[%clk 0:00:05.6]} 41. bxa3 {[%clk 0:00:09.4]} 41... c3
{[%clk 0:00:05.9]} 42. Qe3 {[%clk 0:00:07.9]} 42... Qxa3 {[%clk 0:00:04.8]} 43.
Rc1 {[%clk 0:00:06.8]} 43... Qd6 {[%clk 0:00:03.2]} 44. Bxa5 {[%clk 0:00:05.4]}
44... g5 {[%clk 0:00:02.5]} 45. Ne2 {[%clk 0:00:04.9]} 45... c2 {[%clk
0:00:02.5]} 46. Bd2 {[%clk 0:00:04.1]} 46... Bg6 {[%clk 0:00:01.8]} 47. Nd4
{[%clk 0:00:03.7]} 47... Qa3 {[%clk 0:00:01.6]} 48. Qxa3 {[%clk 0:00:03.3]} 1-0

[Event "Early-Titled-Tuesday-Blitz-October-03-2023"]
[Site "Chess.com"]
[Date "2023.10.03"]
[Round "3"]
[White "Abund"]
[Black "Orest_Vovk"]
[Result "1-0"]
[WhiteElo "2776"]
[BlackElo "2529"]
[TimeControl "180+1"]
[EndTime "8:29:46 PDT"]
[Termination "Abund won on time"]

1. c4 {[%clk 0:03:00.9]} 1... g5 {[%clk 0:02:59.4]} 2. d4 {[%clk 0:02:57.4]}
2... h6 {[%clk 0:02:58.7]} 3. e4 {[%clk 0:02:54.1]} 3... Bg7 {[%clk 0:02:59.2]}
4. h4 {[%clk 0:02:50.2]} 4... c5 {[%clk 0:02:59.7]} 5. d5 {[%clk 0:02:39.3]}
5... d6 {[%clk 0:03:00]} 6. hxg5 {[%clk 0:02:35.9]} 6... hxg5 {[%clk 0:02:59.5]}
7. Rxh8 {[%clk 0:02:36.5]} 7... Bxh8 {[%clk 0:03:00]} 8. Qh5 {[%clk 0:02:31]}
8... Bf6 {[%clk 0:02:56.2]} 9. Nf3 {[%clk 0:02:15.5]} 9... g4 {[%clk 0:02:37.3]}
10. Ng5 {[%clk 0:02:13.9]} 10... Bxg5 {[%clk 0:02:36.1]} 11. Bxg5 {[%clk
0:02:14.7]} 11... Nf6 {[%clk 0:02:24.1]} 12. Qh8+ {[%clk 0:01:40.1]} 12... Kd7
{[%clk 0:02:23.3]} 13. Bxf6 {[%clk 0:01:36.9]} 13... exf6 {[%clk 0:02:22.1]} 14.
Qg7 {[%clk 0:01:36.4]} 14... Ke7 {[%clk 0:02:18.5]} 15. Be2 {[%clk 0:01:28.1]}
15... Qb6 {[%clk 0:01:41.2]} 16. b3 {[%clk 0:01:18.5]} 16... Qb4+ {[%clk
0:01:33.9]} 17. Kd1 {[%clk 0:01:10.1]} 17... b5 {[%clk 0:01:21.2]} 18. Kc2
{[%clk 0:00:43.9]} 18... bxc4 {[%clk 0:01:16.6]} 19. Bxc4 {[%clk 0:00:43.2]}
19... Qe1 {[%clk 0:00:50.2]} 20. f3 {[%clk 0:00:43.3]} 20... g3 {[%clk
0:00:43.1]} 21. a4 {[%clk 0:00:25.1]} 21... Na6 {[%clk 0:00:36.5]} 22. Kb2
{[%clk 0:00:20.7]} 22... Nb4 {[%clk 0:00:26.2]} 23. Qh6 {[%clk 0:00:17]} 23...
Ba6 {[%clk 0:00:07.9]} 24. Bxa6 {[%clk 0:00:13.4]} 24... Nxa6 {[%clk 0:00:08.8]}
25. Qd2 {[%clk 0:00:12.7]} 25... Qf2 {[%clk 0:00:07.9]} 26. Qxf2 {[%clk
0:00:11.5]} 26... gxf2 {[%clk 0:00:08.8]} 27. Nd2 {[%clk 0:00:11.3]} 27... Rg8
{[%clk 0:00:08.7]} 28. g4 {[%clk 0:00:10.9]} 28... Nb4 {[%clk 0:00:07.9]} 29.
Rf1 {[%clk 0:00:11]} 29... Rh8 {[%clk 0:00:07.2]} 30. Kc3 {[%clk 0:00:11.5]}
30... Rh2 {[%clk 0:00:07.2]} 31. Nc4 {[%clk 0:00:10]} 31... Rg2 {[%clk
0:00:04.8]} 32. Ne3 {[%clk 0:00:09.9]} 32... Rh2 {[%clk 0:00:05.2]} 33. Nd1
{[%clk 0:00:10.3]} 33... Na2+ {[%clk 0:00:03.7]} 34. Kd2 {[%clk 0:00:10.4]}
34... Nb4 {[%clk 0:00:03.3]} 35. Rxf2 {[%clk 0:00:10.8]} 35... Rh1 {[%clk
0:00:03.8]} 36. Ke2 {[%clk 0:00:10.8]} 36... Rg1 {[%clk 0:00:03.5]} 37. Rf1
{[%clk 0:00:10.8]} 37... Rg2+ {[%clk 0:00:03.7]} 38. Rf2 {[%clk 0:00:11.4]}
38... Rg1 {[%clk 0:00:03.9]} 39. Rf1 {[%clk 0:00:09.9]} 39... Rg2+ {[%clk
0:00:04]} 40. Nf2 {[%clk 0:00:10.7]} 40... Nc2 {[%clk 0:00:03.8]} 41. Rh1 {[%clk
0:00:10.5]} 41... Nd4+ {[%clk 0:00:03.7]} 42. Ke3 {[%clk 0:00:10.3]} 42... Rg3
{[%clk 0:00:03.4]} 43. Rh3 {[%clk 0:00:10.1]} 43... Rg1 {[%clk 0:00:03.4]} 44.
Rh1 {[%clk 0:00:09.6]} 44... Rg3 {[%clk 0:00:03.2]} 45. Rh3 {[%clk 0:00:09.9]}
45... Rg1 {[%clk 0:00:03]} 46. b4 {[%clk 0:00:06]} 46... Re1+ {[%clk 0:00:01.8]}
47. Kd3 {[%clk 0:00:06.3]} 47... Rb1 {[%clk 0:00:01.1]} 48. bxc5 {[%clk
0:00:06.6]} 48... Rb3+ {[%clk 0:00:02]} 49. Kc4 {[%clk 0:00:06.4]} 49... dxc5
{[%clk 0:00:02.9]} 50. Kxc5 {[%clk 0:00:06.4]} 50... Nc2 {[%clk 0:00:02.3]} 51.
f4 {[%clk 0:00:05.5]} 51... Rb2 {[%clk 0:00:01.5]} 52. Rc3 {[%clk 0:00:05.2]}
52... Nb4 {[%clk 0:00:01.5]} 53. Nd3 {[%clk 0:00:04.8]} 53... Na6+ {[%clk
0:00:01.2]} 54. Kd4 {[%clk 0:00:05.3]} 1-0

[Event "Early-Titled-Tuesday-Blitz-October-03-2023"]
[Site "Chess.com"]
[Date "2023.10.03"]
[Round "3"]
[White "Road2GM3000"]
[Black "Hasangatin_Ramil"]
[Result "0-1"]
[WhiteElo "2360"]
[BlackElo "2730"]
[TimeControl "180+1"]
[EndTime "8:29:46 PDT"]
[Termination "Hasangatin_Ramil won by checkmate"]

1. d4 {[%clk 0:03:00.9]} 1... d6 {[%clk 0:02:58.5]} 2. c4 {[%clk 0:03:01.5]}
2... e5 {[%clk 0:02:58]} 3. Nf3 {[%clk 0:03:00]} 3... e4 {[%clk 0:02:57.7]} 4.
Ng5 {[%clk 0:03:00.2]} 4... f5 {[%clk 0:02:58.1]} 5. Nh3 {[%clk 0:02:58.1]} 5...
Nf6 {[%clk 0:02:56.9]} 6. Nc3 {[%clk 0:02:58.2]} 6... Be7 {[%clk 0:02:56.4]} 7.
g3 {[%clk 0:02:56.5]} 7... O-O {[%clk 0:02:57.3]} 8. Bg2 {[%clk 0:02:57.1]} 8...
c6 {[%clk 0:02:57.5]} 9. O-O {[%clk 0:02:57.6]} 9... d5 {[%clk 0:02:57.9]} 10.
cxd5 {[%clk 0:02:56]} 10... cxd5 {[%clk 0:02:57.5]} 11. Qb3 {[%clk 0:02:55.7]}
11... Nc6 {[%clk 0:02:56.3]} 12. Rd1 {[%clk 0:02:51.1]} 12... Na5 {[%clk
0:02:55.3]} 13. Qa4 {[%clk 0:02:48.7]} 13... Bd7 {[%clk 0:02:54.7]} 14. Qc2
{[%clk 0:02:48]} 14... Rc8 {[%clk 0:02:42.1]} 15. Qd2 {[%clk 0:02:47.6]} 15...
Nc4 {[%clk 0:02:41.8]} 16. Qe1 {[%clk 0:02:47.3]} 16... Be6 {[%clk 0:02:35.4]}
17. Nf4 {[%clk 0:02:45.2]} 17... Qd7 {[%clk 0:02:35.7]} 18. b3 {[%clk 0:02:45]}
18... Nb6 {[%clk 0:02:32.9]} 19. Nxe6 {[%clk 0:02:35]} 19... Qxe6 {[%clk
0:02:33.8]} 20. Bd2 {[%clk 0:02:26.2]} 20... Rc6 {[%clk 0:02:27.3]} 21. a4
{[%clk 0:02:23.3]} 21... a6 {[%clk 0:02:26.7]} 22. a5 {[%clk 0:02:21.4]} 22...
Nbd7 {[%clk 0:02:26.8]} 23. Na4 {[%clk 0:02:20.4]} 23... Rfc8 {[%clk 0:02:25.6]}
24. Rdc1 {[%clk 0:02:20.6]} 24... Nf8 {[%clk 0:02:13]} 25. Nb6 {[%clk
0:02:17.7]} 25... R8c7 {[%clk 0:02:12.5]} 26. Bf4 {[%clk 0:02:16.5]} 26... Rxc1
{[%clk 0:02:11.3]} 27. Rxc1 {[%clk 0:02:15.7]} 27... Rxc1 {[%clk 0:02:11.4]} 28.
Qxc1 {[%clk 0:02:16.3]} 28... Qc6 {[%clk 0:02:11.2]} 29. Qxc6 {[%clk 0:02:14]}
29... bxc6 {[%clk 0:02:12.1]} 30. e3 {[%clk 0:02:10.8]} 30... Bb4 {[%clk
0:02:12]} 31. Bf1 {[%clk 0:02:05]} 31... Bxa5 {[%clk 0:02:12.2]} 32. Na4 {[%clk
0:02:05.6]} 32... Kf7 {[%clk 0:02:02.5]} 33. Bxa6 {[%clk 0:02:05]} 33... Ke7
{[%clk 0:02:02.3]} 34. Bb7 {[%clk 0:01:57.5]} 34... Ne6 {[%clk 0:01:59.7]} 35.
Bxc6 {[%clk 0:01:50.9]} 35... Nxf4 {[%clk 0:01:58.2]} 36. gxf4 {[%clk
0:01:51.8]} 36... Bb4 {[%clk 0:01:56.7]} 37. Kg2 {[%clk 0:01:29.5]} 37... Kd6
{[%clk 0:01:56.3]} 38. Bb5 {[%clk 0:01:28.9]} 38... h6 {[%clk 0:01:50.2]} 39.
Kg3 {[%clk 0:01:04]} 39... Be1 {[%clk 0:01:45.4]} 40. h3 {[%clk 0:00:51.3]}
40... Nh5+ {[%clk 0:01:43.6]} 41. Kg2 {[%clk 0:00:48.9]} 41... g5 {[%clk
0:01:43.4]} 42. fxg5 {[%clk 0:00:48.1]} 42... hxg5 {[%clk 0:01:44.3]} 43. Be8
{[%clk 0:00:44.5]} 43... Nf6 {[%clk 0:01:42]} 44. Bg6 {[%clk 0:00:44.6]} 44...
f4 {[%clk 0:01:42]} 45. Nb6 {[%clk 0:00:35.5]} 45... Bd2 {[%clk 0:01:39.3]} 46.
exf4 {[%clk 0:00:26.2]} 46... gxf4 {[%clk 0:01:40.2]} 47. h4 {[%clk 0:00:19.3]}
47... Bc3 {[%clk 0:01:36.5]} 48. h5 {[%clk 0:00:18.3]} 48... Ng4 {[%clk
0:01:36.7]} 49. Nc8+ {[%clk 0:00:16.2]} 49... Ke6 {[%clk 0:01:32.4]} 50. Be8
{[%clk 0:00:07.2]} 50... Bxd4 {[%clk 0:01:29]} 51. b4 {[%clk 0:00:07.7]} 51...
f3+ {[%clk 0:01:26.8]} 52. Kf1 {[%clk 0:00:07.1]} 52... Bxf2 {[%clk 0:01:21]}
53. h6 {[%clk 0:00:07.6]} 53... Bd4 {[%clk 0:01:19.2]} 54. h7 {[%clk 0:00:05.4]}
54... e3 {[%clk 0:01:19.2]} 55. Bb5 {[%clk 0:00:05.7]} 55... Nh2+ {[%clk
0:01:08.5]} 56. Ke1 {[%clk 0:00:06.2]} 56... Bc3+ {[%clk 0:00:59.6]} 57. Kd1
{[%clk 0:00:06.3]} 57... Ng4 {[%clk 0:00:52.2]} 58. Bd3 {[%clk 0:00:06.6]} 58...
Nf2+ {[%clk 0:00:51.9]} 59. Kc2 {[%clk 0:00:06.8]} 59... e2 {[%clk 0:00:48.5]}
60. Kxc3 {[%clk 0:00:03.1]} 60... e1=Q+ {[%clk 0:00:48.2]} 61. Kb3 {[%clk
0:00:04]} 61... Qe5 {[%clk 0:00:39.5]} 62. b5 {[%clk 0:00:03.6]} 62... Nxd3
{[%clk 0:00:38.9]} 63. b6 {[%clk 0:00:04.2]} 63... Nc5+ {[%clk 0:00:38.8]} 64.
Kb4 {[%clk 0:00:04.3]} 64... Nb7 {[%clk 0:00:38.4]} 65. Kb5 {[%clk 0:00:04.5]}
65... Qh8 {[%clk 0:00:37]} 66. Kc6 {[%clk 0:00:04.9]} 66... Qxc8+ {[%clk
0:00:36.5]} 67. Kb5 {[%clk 0:00:05.2]} 67... Qh8 {[%clk 0:00:36]} 68. Ka6 {[%clk
0:00:06.1]} 68... Qxh7 {[%clk 0:00:36.3]} 69. Ka7 {[%clk 0:00:07]} 69... Nc5+
{[%clk 0:00:35.5]} 70. Ka8 {[%clk 0:00:07.9]} 70... Qb7# {[%clk 0:00:34.3]} 0-1